fUST/lending_fUST_20240905
["ID","MTS","AMOUNT","RATE_DAILY","PERIOD"]
[337224600,1725511850282,-200.0,0.00021917,2]
[337224601,1725511850291,-500.0,0.00021917,2]
[337224602,1725511850300,-6866.22,0.00021917,2]
[337224603,1725511850309,-500.0,0.00021917,2]
[337224604,1725511850319,-500.0,0.00021917,2]
[337224605,1725511850331,-500.0,0.00021917,2]
[337224606,1725511850342,-500.0,0.00021917,2]
[337224607,1725511850353,-500.0,0.00021917,2]
[337224608,1725511850362,-500.0,0.00021917,2]
[337224609,1725511850372,-500.0,0.00021917,2]
[337224610,1725511850382,-9015.3,0.00021917,2]
[337224611,1725511850392,-500.0,0.00021917,2]
[337224612,1725511850402,-500.0,0.00021917,2]
[337224613,1725511850411,-307.16335263,0.00021917,2]
[337224614,1725511850420,-500.0,0.00021917,2]
[337224615,1725511850430,-500.0,0.00021917,2]
[337224616,1725511850440,-500.0,0.00021917,2]
[337224617,1725511850449,-958.48,0.00021917,2]
[337224618,1725511850460,-500.0,0.00021917,2]
[337224619,1725511850470,-500.0,0.00021917,2]
[337224620,1725511850483,-500.0,0.00021917,2]
[337224621,1725511850493,-500.0,0.00021917,2]
[337224622,1725511850503,-1463.1,0.00021917,2]
[337224623,1725511850514,-500.0,0.00021917,2]
[337224624,1725511850525,-500.0,0.00021917,2]
[337224625,1725511850537,-500.0,0.00021917,2]
[337224626,1725511850549,-532.28899607,0.00021917,2]
[337224627,1725511850560,-509.18399391,0.00021917,2]
[337224628,1725511850569,-500.0,0.00021917,2]
[337224629,1725511850579,-500.0,0.00021917,2]
[337224630,1725511850588,-504.89588096,0.00021917,2]
[337224631,1725511850598,-500.0,0.00021917,2]
[337224632,1725511850607,-542.78,0.00021917,2]
[337224633,1725511850616,-2059.37,0.00021917,2]
[337224634,1725511850626,-500.0,0.00021917,2]
[337224635,1725511850636,-500.0,0.00021917,2]
[337224636,1725511850645,-500.0,0.00021917,2]
[337224637,1725511850655,-500.0,0.00021917,2]
[337224638,1725511850664,-585.78,0.00021917,2]
[337224639,1725511850678,-1334.01,0.00021917,2]
[337224640,1725511850689,-500.0,0.00021917,2]
[337224641,1725511850699,-515.75223756,0.00021917,2]
[337224642,1725511850711,-500.0,0.00021917,2]
[337224643,1725511850720,-973.56,0.00021917,2]
[337224644,1725511850730,-655.28,0.00021917,2]
[337224645,1725511850740,-500.0,0.00021917,2]
[337224646,1725511850750,-500.0,0.00021917,2]
[337224647,1725511850761,-509.8,0.00021917,2]
[337224648,1725511850770,-500.0,0.00021917,2]
[337224649,1725511850780,-500.0,0.00021917,2]
[337224650,1725511850790,-500.0,0.00021917,2]
[337224651,1725511850800,-1262.17,0.00021917,2]
[337224652,1725511850812,-500.0,0.00021917,2]
[337224653,1725511850822,-500.0,0.00021917,2]
[337224654,1725511850834,-500.0,0.00021917,2]
[337224655,1725511850847,-500.0,0.00021917,2]
[337224656,1725511850858,-500.0,0.00021917,2]
[337224657,1725511850868,-930.09,0.00021917,2]
[337224658,1725511850880,-500.0,0.00021917,2]
[337224659,1725511850891,-4605.84,0.00021917,2]
[337224660,1725511850904,-4539.58,0.00021917,2]
[337224661,1725511850915,-500.0,0.00021917,2]
[337224662,1725511850926,-500.0,0.00021917,2]
[337224663,1725511850937,-500.0,0.00021917,2]
[337224664,1725511850948,-500.0,0.00021917,2]
[337224665,1725511850958,-500.0,0.00021917,2]
[337224666,1725511850969,-500.0,0.00021917,2]
[337224667,1725511850981,-500.0,0.00021917,2]
[337224668,1725511850991,-527.9026709,0.00021917,2]
[337224669,1725511851002,-500.0,0.00021917,2]
[337224670,1725511851012,-500.0,0.00021917,2]
[337224671,1725511851023,-500.0,0.00021917,2]
[337224672,1725511851033,-500.0,0.00021917,2]
[337224673,1725511851043,-500.0,0.00021917,2]
[337224674,1725511851053,-559.30036937,0.00021917,2]
[337224675,1725511851064,-516.69,0.00021917,2]
[337224676,1725511851074,-508.03186729,0.00021917,2]
[337224677,1725511851083,-520.73,0.00021917,2]
[337224678,1725511851093,-8665.42,0.00021917,2]
[337224679,1725511851104,-1868.7,0.00021917,2]
[337224680,1725511851114,-500.0,0.00021917,2]
[337224681,1725511851123,-500.0,0.00021917,2]
[337224682,1725511851132,-500.0,0.00021917,2]
[337224683,1725511851141,-500.0,0.00021917,2]
[337224684,1725511851151,-503.59811971,0.00021917,2]
[337224685,1725511851161,-500.0,0.00021917,2]
[337224686,1725511851171,-500.0,0.00021917,2]
[337224687,1725511851181,-1198.72,0.00021917,2]
[337224688,1725511851191,-501.57741417,0.00021917,2]
[337224689,1725511851201,-500.0,0.00021917,2]
[337224690,1725511851211,-500.0,0.00021917,2]
[337224691,1725511851221,-1631.2,0.00021917,2]
[337224692,1725511851231,-795.56,0.00021917,2]
[337224693,1725511851240,-500.0,0.00021917,2]
[337224694,1725511851250,-500.0,0.00021917,2]
[337224695,1725511851259,-500.0,0.00021917,2]
[337224696,1725511851270,-500.0,0.00021917,2]
[337224697,1725511851280,-500.0,0.00021917,2]
[337224698,1725511851289,-500.0,0.00021917,2]
[337224699,1725511851299,-1254.34,0.00021917,2]
[337224700,1725511851309,-159.41755341,0.00021917,2]
[337224701,1725511851319,-512.34438851,0.00021917,2]
[337224702,1725511851329,-505.07266352,0.00021917,2]
[337224703,1725511851338,-500.0,0.00021917,2]
[337224704,1725511851348,-500.0,0.00021917,2]
[337224705,1725511851358,-797.81,0.00021917,2]
[337224706,1725511851368,-500.0,0.00021917,2]
[337224707,1725511851378,-500.0,0.00021917,2]
[337224708,1725511851387,-500.0,0.00021917,2]
[337224709,1725511851398,-500.0,0.00021917,2]
[337224710,1725511851408,-651.56,0.00021917,2]
[337224711,1725511851418,-500.0,0.00021917,2]
[337224712,1725511851430,-500.0,0.00021917,2]
[337224713,1725511851442,-500.0,0.00021917,2]
[337224714,1725511851452,-1469.69,0.00021917,2]
[337224715,1725511851463,-4846.51,0.00021917,2]
[337224716,1725511851474,-1164.21,0.00021917,2]
[337224717,1725511851483,-500.0,0.00021917,2]
[337224718,1725511851493,-500.0,0.00021917,2]
[337224719,1725511851503,-500.0,0.00021917,2]
[337224720,1725511851514,-500.0,0.00021917,2]
[337224721,1725511851526,-719.01,0.00021917,2]
[337224722,1725511851536,-500.0,0.00021917,2]
[337224723,1725511851546,-1125.72,0.00021917,2]
[337224724,1725511851556,-643.35,0.00021917,2]
[337224725,1725511851566,-505.96084405,0.00021917,2]
[337224726,1725511851575,-500.0,0.00021917,2]
[337224727,1725511851585,-500.0,0.00021917,2]
[337224728,1725511851594,-500.0,0.00021917,2]
[337224729,1725511851605,-500.0,0.00021917,2]
[337224730,1725511851617,-500.0,0.00021917,2]
[337224731,1725511851629,-500.0,0.00021917,2]
[337224732,1725511851640,-500.0,0.00021917,2]
[337224733,1725511851652,-832.64,0.00021917,2]
[337224734,1725511851662,-500.0,0.00021917,2]
[337224735,1725511851673,-627.66,0.00021917,2]
[337224736,1725511851685,-500.0,0.00021917,2]
[337224737,1725511851695,-500.0,0.00021917,2]
[337224738,1725511851706,-3434.58,0.00021917,2]
[337224739,1725511851717,-1942.98,0.00021917,2]
[337224740,1725511851730,-1071.36,0.00021917,2]
[337224741,1725511851741,-500.0,0.00021917,2]
[337224742,1725511851752,-655.83,0.00021917,2]
[337224743,1725511851762,-8321.17,0.00021917,2]
[337224744,1725511851772,-885.87,0.00021917,2]
[337224745,1725511851781,-507.94366552,0.00021917,2]
[337224746,1725511851791,-500.0,0.00021917,2]
[337224747,1725511851801,-501.91429236,0.00021917,2]
[337224748,1725511851811,-500.0,0.00021917,2]
[337224749,1725511851822,-500.0,0.00021917,2]
[337224750,1725511851833,-500.0,0.00021917,2]
[337224751,1725511851846,-500.0,0.00021917,2]
[337224752,1725511851856,-549.9,0.00021917,2]
[337224753,1725511851866,-3266.09,0.00021917,2]
[337224754,1725511851875,-1019.58,0.00021917,2]
[337224755,1725511851885,-500.0,0.00021917,2]
[337224756,1725511851895,-500.0,0.00021917,2]
[337224757,1725511851905,-1155.63,0.00021917,2]
[337224758,1725511851915,-506.59091151,0.00021917,2]
[337224759,1725511851926,-500.0,0.00021917,2]
[337224760,1725511851937,-500.0,0.00021917,2]
[337224761,1725511851948,-406.40082791,0.00021917,2]
[337224762,1725511851960,-500.0,0.00021917,2]
[337224763,1725511851970,-592.81,0.00021917,2]
[337224764,1725511851979,-500.0,0.00021917,2]
[337224765,1725511851988,-6270.83,0.00021917,2]
[337224766,1725511851998,-500.0,0.00021917,2]
[337224767,1725511852008,-1206.16,0.00021917,2]
[337224768,1725511852017,-500.0,0.00021917,2]
[337224769,1725511852027,-500.0,0.00021917,2]
[337224770,1725511852036,-1027.87,0.00021917,2]
[337224771,1725511852045,-545.65,0.00021917,2]
[337224772,1725511852055,-590.87343059,0.00021917,2]
[337224773,1725511852064,-500.0,0.00021917,2]
[337224774,1725511852074,-500.0,0.00021917,2]
[337224775,1725511852083,-1461.46,0.00021917,2]
[337224776,1725511852093,-1061.8,0.00021917,2]
[337224777,1725511852102,-505.32644199,0.00021917,2]
[337224778,1725511852111,-502.03618203,0.00021917,2]
[337224779,1725511852120,-500.0,0.00021917,2]
[337224780,1725511852130,-500.0,0.00021917,2]
[337224781,1725511852139,-500.0,0.00021917,2]
[337224782,1725511852149,-500.0,0.00021917,2]
[337224783,1725511852159,-649.79,0.00021917,2]
[337224784,1725511852171,-500.0,0.00021917,2]
[337224785,1725511852183,-500.0,0.00021917,2]
[337224786,1725511852194,-500.0,0.00021917,2]
[337224787,1725511852205,-1532.78,0.00021917,2]
[337224788,1725511852214,-470.84632816,0.00021917,2]
[337224789,1725511852224,-500.0,0.00021917,2]
[337224790,1725511852235,-309.31284494,0.00021917,2]
[337224791,1725511852246,-1486.29,0.00021917,2]
[337224792,1725511852257,-607.1,0.00021917,2]
[337224793,1725511852266,-500.0,0.00021917,2]
[337224794,1725511852275,-565.43,0.00021917,2]
[337224795,1725511852285,-500.0,0.00021917,2]
[337224796,1725511852295,-500.0,0.00021917,2]
[337224797,1725511852304,-551.21,0.00021917,2]
[337224798,1725511852314,-508.95506788,0.00021917,2]
[337224799,1725511852323,-500.0,0.00021917,2]
[337224800,1725511852333,-254.006526,0.00021917,2]
[337224801,1725511852342,-500.0,0.00021917,2]
[337224802,1725511852352,-151.0,0.00021917,2]
[337224803,1725511852362,-500.0,0.00021917,2]
[337224804,1725511852371,-1061.13,0.00021917,2]
[337224805,1725511852381,-1465.46,0.00021917,2]
[337224806,1725511852390,-643.27,0.00021917,2]
[337224807,1725511852400,-151.0,0.00021917,2]
[337224808,1725511852410,-1517.06,0.00021917,2]
[337224809,1725511852419,-7317.01,0.00021917,2]
[337224810,1725511852429,-500.0,0.00021917,2]
[337224811,1725511852438,-151.0,0.00021917,2]
[337224812,1725511852448,-151.0,0.00021917,2]
[337224813,1725511852459,-1174.12,0.00021917,2]
[337224814,1725511852469,-16122.26,0.00021917,2]
[337224815,1725511852478,-500.0,0.00021917,2]
[337224816,1725511852487,-500.0,0.00021917,2]
[337224817,1725511852496,-820.94,0.00021917,2]
[337224818,1725511852506,-500.0,0.00021917,2]
[337224819,1725511852516,-1659.05,0.00021917,2]
[337224820,1725511852526,-502.68007586,0.00021917,2]
[337224821,1725511852536,-500.05,0.00021917,2]
[337224822,1725511852545,-500.0,0.00021917,2]
[337224823,1725511852555,-724.83,0.00021917,2]
[337224824,1725511852566,-531.8960807,0.00021917,2]
[337224825,1725511852576,-612.73,0.00021917,2]
[337224826,1725511852585,-500.0,0.00021917,2]
[337224827,1725511852595,-500.0,0.00021917,2]
[337224828,1725511852606,-13958.5,0.00021917,2]
[337224829,1725511852616,-2897.311599,0.00021917,2]
[337224830,1725511852626,-2897.311599,0.00021917,2]
[337224831,1725511852876,-500.0,0.00021917,2]
[337224832,1725511852892,-2897.311599,0.00021917,2]
[337224833,1725511852901,-2897.311599,0.00021917,2]
[337224834,1725511852910,-1213.17,0.00021917,2]
[337224835,1725511852921,-498.98530652,0.00021917,2]
[337224836,1725511852932,-2597.73,0.00021917,2]
[337224837,1725511852943,-2597.73,0.00021917,2]
[337224838,1725511852954,-2597.73,0.00021917,2]
[337224839,1725511852964,-2597.73,0.00021917,2]
[337224840,1725511852973,-2597.73,0.00021917,2]
[337224841,1725511852982,-2597.73,0.00021917,2]
[337224842,1725511852991,-2597.73,0.00021917,2]
[337224843,1725511853000,-2597.73,0.00021917,2]
[337224844,1725511853009,-2597.73,0.00021917,2]
[337224845,1725511853018,-2597.73,0.00021917,2]
[337224846,1725511853028,-8401.57,0.00021917,2]
[337224847,1725511853038,-2597.73,0.00021917,2]
[337224848,1725511853047,-2597.73,0.00021917,2]
[337224849,1725511853057,-500.0,0.00021917,2]
[337224850,1725511853066,-2597.73,0.00021917,2]
[337224851,1725511853075,-2597.73,0.00021917,2]
[337224852,1725511853084,-2597.73,0.00021917,2]
[337224853,1725511853094,-2597.73,0.00021917,2]
[337224854,1725511853106,-500.0,0.00021917,2]
[337224855,1725511853116,-2597.73,0.00021917,2]
[337224856,1725511853127,-2597.73,0.00021917,2]
[337224857,1725511853137,-500.0,0.00021917,2]
[337224858,1725511853147,-2597.73,0.00021917,2]
[337224859,1725511853157,-2597.73,0.00021917,2]
[337224860,1725511853167,-2597.73,0.00021917,2]
[337224861,1725511853180,-2597.73,0.00021917,2]
[337224862,1725511853191,-2597.73,0.00021917,2]
[337224863,1725511853201,-500.0,0.00021917,2]
[337224864,1725511853212,-2597.8763235,0.00021917,2]
[337224865,1725511853224,-500.0,0.00021917,2]
[337224866,1725511853235,-2039.53,0.00021917,2]
[337224867,1725511853246,-500.0,0.00021917,2]
[337224868,1725511853256,-500.0,0.00021917,2]
[337224869,1725511853265,-4028.61,0.00021917,2]
[337224870,1725511853274,-500.0,0.00021917,2]
[337224871,1725511853283,-500.0,0.00021917,2]
[337224872,1725511853292,-500.0,0.00021917,2]
[337224873,1725511853301,-500.0,0.00021917,2]
[337224874,1725511853312,-500.0,0.00021917,2]
[337224875,1725511853322,-879.2,0.00021917,2]
[337224876,1725511853333,-500.0,0.00021917,2]
[337224877,1725511853343,-500.0,0.00021917,2]
[337224878,1725511853354,-500.0,0.00021917,2]
[337224879,1725511853364,-500.0,0.00021917,2]
[337224880,1725511853374,-2218.89,0.00021917,2]
[337224881,1725511853384,-1213.88,0.00021917,2]
[337224882,1725511853394,-500.0,0.00021918,2]
[337224883,1725511853403,-500.0,0.00021918,2]
[337224884,1725511853412,-500.0,0.00021918,2]
[337224885,1725511853422,-500.0,0.00021918,2]
[337224886,1725511853431,-500.0,0.00021918,2]
[337224887,1725511853440,-500.0,0.00021918,2]
[337224888,1725511853449,-500.0,0.00021918,2]
[337224889,1725511853461,-500.0,0.00021918,2]
[337224890,1725511853472,-500.0,0.00021918,2]
[337224891,1725511853482,-500.0,0.00021918,2]
[337224892,1725511853493,-500.0,0.00021918,2]
[337224893,1725511853503,-500.0,0.00021918,2]
[337224894,1725511853514,-500.0,0.00021918,2]
[337224895,1725511853524,-500.0,0.00021918,2]
[337224896,1725511853534,-500.0,0.00021918,2]
[337224897,1725511853546,-500.0,0.00021918,2]
[337224898,1725511853556,-500.0,0.00021918,2]
[337224899,1725511853566,-500.0,0.00021918,2]
[337224900,1725511853576,-500.0,0.00021918,2]
[337224901,1725511853587,-500.0,0.00021918,2]
[337224902,1725511853599,-500.0,0.00021918,2]
[337224903,1725511853610,-500.0,0.00021918,2]
[337224904,1725511853620,-500.0,0.00021918,2]
[337224905,1725511853631,-500.0,0.00021918,2]
[337224906,1725511853641,-500.0,0.00021918,2]
[337224907,1725511853652,-500.0,0.00021918,2]
[337224908,1725511853662,-500.0,0.00021918,2]
[337224909,1725511853672,-500.0,0.00021918,2]
[337224910,1725511853682,-500.0,0.00021918,2]
[337224911,1725511853692,-500.0,0.00021918,2]
[337224912,1725511853702,-500.0,0.00021918,2]
[337224913,1725511853711,-500.0,0.00021918,2]
[337224914,1725511853721,-500.0,0.00021918,2]
[337224915,1725511853732,-500.0,0.00021918,2]
[337224916,1725511853743,-500.0,0.00021918,2]
[337224917,1725511853753,-500.0,0.00021918,2]
[337224918,1725511853763,-500.0,0.00021918,2]
[337224919,1725511853772,-500.0,0.00021918,2]
[337224920,1725511853781,-500.0,0.00021918,2]
[337224921,1725511853791,-500.0,0.00021918,2]
[337224922,1725511853800,-500.0,0.00021918,2]
[337224923,1725511853809,-500.0,0.00021918,2]
[337224924,1725511853818,-500.0,0.00021918,2]
[337224925,1725511853827,-500.0,0.00021918,2]
[337224926,1725511853839,-500.0,0.00021918,2]
[337224927,1725511853848,-500.0,0.00021918,2]
[337224928,1725511853858,-500.0,0.00021918,2]
[337224929,1725511853867,-500.0,0.00021918,2]
[337224930,1725511853877,-500.0,0.00021918,2]
[337224931,1725511853886,-500.0,0.00021918,2]
[337224932,1725511853896,-500.0,0.00021918,2]
[337224933,1725511853905,-500.0,0.00021918,2]
[337224934,1725511853916,-500.0,0.00021918,2]
[337224935,1725511853926,-500.0,0.00021918,2]
[337224936,1725511853935,-500.0,0.00021918,2]
[337224937,1725511853948,-500.0,0.00021918,2]
[337224938,1725511853958,-500.0,0.00021918,2]
[337224939,1725511853967,-500.0,0.00021918,2]
[337224940,1725511853977,-500.0,0.00021918,2]
[337224941,1725511853986,-500.0,0.00021918,2]
[337224942,1725511853995,-500.0,0.00021918,2]
[337224943,1725511854005,-500.0,0.00021918,2]
[337224944,1725511854014,-241.86388034,0.00021918,2]
[337224945,1725511854024,-500.0,0.00021918,2]
[337224946,1725511854037,-500.0,0.00021918,2]
[337224947,1725511854049,-500.0,0.00021918,2]
[337224948,1725511854058,-500.0,0.00021918,2]
[337224949,1725511854068,-500.0,0.00021918,2]
[337224950,1725511854077,-500.0,0.00021918,2]
[337224951,1725511854087,-500.0,0.00021918,2]
[337224952,1725511854096,-500.0,0.00021918,2]
[337224953,1725511854105,-500.0,0.00021918,2]
[337224954,1725511854115,-500.0,0.00021918,2]
[337224955,1725511854124,-3000.0,0.0002192,2]
[337224956,1725511854133,-3000.0,0.0002193,2]
[337224957,1725511854142,-3000.0,0.0002194,2]
[337224958,1725511854154,-3000.0,0.0002195,2]
[337224959,1725511854163,-3000.0,0.0002196,2]
[337224960,1725511854173,-3000.0,0.0002197,2]
[337224961,1725511854183,-500.49858895,0.00021973,2]
[337224962,1725511854193,-500.0,0.00021973,2]
[337224963,1725511854202,-190.7480316,0.00021973,2]
[337224964,1725511854212,-500.0,0.00021973,2]
[337224965,1725511854221,-500.0,0.00021973,2]
[337224966,1725511854230,-255.16256992,0.00021973,2]
[337224967,1725511854241,-3000.0,0.0002198,2]
[337224968,1725511854253,-3000.0,0.0002199,2]
[337224969,1725511854263,-6914.7253515,0.00021996,2]
[337224970,1725511854272,-279.28603081,0.00022,2]
[337224971,1725511854282,-500.0,0.00022,2]
[337224972,1725511854292,-298.59707192,0.00022,2]
[337224973,1725511854303,-1011.34579846,0.00022,2]
[337224974,1725511854313,-2072.46384631,0.00022,2]
[337224975,1725511854325,-3000.0,0.00022,2]
[337224976,1725511854337,-150.0,0.00022,2]
[337224977,1725511854347,-302.21432435,0.00022,2]
[337224978,1725511854358,-16389.10963438,0.0002201,16]
[337224979,1725511854368,-3000.0,0.0002201,2]
[337224980,1725511854378,-3000.0,0.0002202,2]
[337224981,1725511854388,-3000.0,0.0002203,2]
[337224982,1725511854397,-151.0,0.0002203,7]
[337224983,1725511854406,-151.0,0.0002203,7]
[337224984,1725511854416,-2897.311599,0.0002203,7]
[337224985,1725511854425,-2897.311599,0.0002203,7]
[337224986,1725511854434,-3000.0,0.0002204,2]
[337224987,1725511854444,-150.0,0.00022045,2]
[337224988,1725511854453,-150.605,0.00022045,2]
[337224989,1725511854463,-150.098,0.00022045,2]
[337224990,1725511854475,-160.0,0.00022046,7]
[337224991,1725511854487,-3000.0,0.0002205,2]
[337224992,1725511854499,-3000.0,0.0002206,2]
[337224993,1725511854510,-5941.386494,0.0002207,2]
[337224994,1725511854520,-203.01693651,0.00022173,2]
[337224995,1725511854530,-500.0,0.00022173,2]
[337224996,1725511854540,-505.84172109,0.00022173,2]
[337224997,1725511854549,-501.55856227,0.00022173,2]
[337224998,1725511854560,-500.0,0.00022173,2]
[337224999,1725511854569,-500.0,0.00022191,2]
[337225000,1725511854579,-500.0,0.00022191,2]
[337225001,1725511854589,-500.0,0.00022191,2]
[337225002,1725511854600,-366.02524575,0.00022191,2]
[337225003,1725511854611,-500.0,0.00022191,2]
[337225004,1725511854623,-500.0,0.00022191,2]
[337225005,1725511854634,-500.0,0.00022191,2]
[337225006,1725511854644,-503.02373834,0.00022191,2]
[337225007,1725511854656,-500.0,0.00022191,2]
[337225008,1725511854667,-500.0,0.00022191,2]
[337225009,1725511854678,-500.0,0.00022191,2]
[337225010,1725511854688,-500.0,0.00022191,2]
[337225011,1725511854698,-311.127235,0.00022191,2]
[337225012,1725511854708,-500.0,0.00022191,2]
[337225013,1725511854718,-195.17455789,0.00022191,2]
[337225014,1725511854728,-500.0,0.00022191,2]
[337225015,1725511854737,-500.0,0.00022191,2]
[337225016,1725511854747,-500.0,0.00022191,2]
[337225017,1725511854757,-500.0,0.00022191,2]
[337225018,1725511854767,-354.39860327,0.00022191,2]
[337225019,1725511854777,-1383.44,0.00022191,2]
[337225020,1725511854787,-501.20063414,0.00022191,2]
[337225021,1725511854796,-500.0,0.00022191,2]
[337225022,1725511854805,-500.0,0.00022191,2]
[337225023,1725511854815,-355.12757277,0.00022191,2]
[337225024,1725511854824,-510.19374085,0.00022191,2]
[337225025,1725511854834,-500.0,0.00022191,2]
[337225026,1725511854845,-500.0,0.00022191,2]
[337225027,1725511854854,-500.0,0.00022191,2]
[337225028,1725511854864,-561.68004539,0.00022191,2]
[337225029,1725511854874,-500.0,0.00022191,2]
[337225030,1725511854883,-500.0,0.00022191,2]
[337225031,1725511854892,-500.0,0.00022191,2]
[337225032,1725511854901,-500.0,0.00022191,2]
[337225033,1725511854911,-500.0,0.00022191,2]
[337225034,1725511854921,-500.0,0.00022191,2]
[337225035,1725511854931,-500.0,0.00022191,2]
[337225036,1725511854942,-500.0,0.00022191,2]
[337225037,1725511854952,-509.18953763,0.00022191,2]
[337225038,1725511854963,-500.0,0.00022191,2]
[337225039,1725511854972,-646.86,0.00022191,2]
[337225040,1725511854982,-500.0,0.00022191,2]
[337225041,1725511854992,-533.56064304,0.00022191,2]
[337225042,1725511855001,-500.0,0.00022191,2]
[337225043,1725511855011,-920.43,0.00022191,2]
[337225044,1725511855020,-500.0,0.00022191,2]
[337225045,1725511855030,-500.0,0.00022191,2]
[337225046,1725511855039,-500.0,0.00022191,2]
[337225047,1725511855049,-500.0,0.00022191,2]
[337225048,1725511855058,-500.0,0.00022191,2]
[337225049,1725511855068,-530.47,0.00022191,2]
[337225050,1725511855077,-500.0,0.00022191,2]
[337225051,1725511855087,-488.00387205,0.00022191,2]
[337225052,1725511855096,-500.0,0.00022191,2]
[337225053,1725511855106,-500.0,0.00022191,2]
[337225054,1725511855116,-500.0,0.00022191,2]
[337225055,1725511855126,-544.76,0.00022191,2]
[337225056,1725511855135,-628.95,0.00022191,2]
[337225057,1725511855145,-500.0,0.00022191,2]
[337225058,1725511855155,-500.0,0.00022191,2]
[337225059,1725511855165,-500.0,0.00022191,2]
[337225060,1725511855175,-500.0,0.00022191,2]
[337225061,1725511855186,-500.0,0.00022191,2]
[337225062,1725511855195,-500.0,0.00022191,2]
[337225063,1725511855205,-500.0,0.00022191,2]
[337225064,1725511855214,-500.0,0.00022191,2]
[337225065,1725511855223,-500.0,0.00022191,2]
[337225066,1725511855281,-502.93140337,0.00022191,2]
[337225067,1725511855291,-500.0,0.00022191,2]
[337225068,1725511855300,-500.0,0.00022191,2]
[337225069,1725511855310,-500.0,0.00022191,2]
[337225070,1725511855319,-500.0,0.00022191,2]
[337225071,1725511855328,-500.0,0.00022191,2]
[337225072,1725511855337,-513.6000323,0.00022191,2]
[337225073,1725511855347,-500.0,0.00022191,2]
[337225074,1725511855356,-500.0,0.00022191,2]
[337225075,1725511855365,-508.44312055,0.00022191,2]
[337225076,1725511855375,-500.0,0.00022191,2]
[337225077,1725511855384,-510.66479402,0.00022191,2]
[337225078,1725511855393,-654.72,0.00022191,2]
[337225079,1725511855402,-500.0,0.00022191,2]
[337225080,1725511855411,-500.0,0.00022191,2]
[337225081,1725511855421,-500.0,0.00022191,2]
[337225082,1725511855430,-503.53,0.00022191,2]
[337225083,1725511855439,-1089.61,0.00022191,2]
[337225084,1725511855448,-500.0,0.00022191,2]
[337225085,1725511855460,-500.0,0.00022191,2]
[337225086,1725511855469,-632.13,0.00022191,2]
[337225087,1725511855477,-500.0,0.00022191,2]
[337225088,1725511855487,-503.23810198,0.00022191,2]
[337225089,1725511855496,-500.0,0.00022191,2]
[337225090,1725511855506,-500.0,0.00022191,2]
[337225091,1725511855515,-547.23694791,0.00022191,2]
[337225092,1725511855524,-578.99,0.00022191,2]
[337225093,1725511855533,-500.0,0.00022191,2]
[337225094,1725511855542,-500.0,0.00022191,2]
[337225095,1725511855551,-385.73250257,0.00022191,2]
[337225096,1725511855560,-500.0,0.00022191,2]
[337225097,1725511855570,-500.0,0.00022191,2]
[337225098,1725511855579,-880.94,0.00022191,2]
[337225099,1725511855589,-500.0,0.00022191,2]